[Event "FIDE WYCC Girls U18 2023"]
[Site "Montesilvano"]
[Date "2023.11.15"]
[Round "3.9"]
[White "Cornileau, Juliette"]
[Black "Nguyen, Thien Ngan"]
[Result "1/2-1/2"]
[ECO "D35"]
[WhiteElo "2089"]
[BlackElo "1891"]
[Annotator "NA"]
[PlyCount "106"]
[EventDate "2023.11.13"]
[EventType "swiss"]
[EventCountry "ITA"]
[SourceTitle "playchess.com"]
[Source "ChessBase"]
[SourceQuality "1"]
[TimeControl "40/5400+30:1800+30"]

1. d4 {[%emt 0:00:03]} d5 {[%emt 0:00:07]} 2. c4 {[%emt 0:00:06]} e6 3. Nc3 {[%emt 0:00:04]} Nf6 {[%emt 0:00:46]} 4. cxd5 {[%emt 0:00:10]} Nxd5 {[%emt 0:00:09]} 5. e4 {[%emt 0:01:00]} Nxc3 6. bxc3 {[%emt 0:00:05]} c5 {[%emt 0:00:17]} 7. Rb1 {[%emt 0:01:39]} cxd4 {[%emt 0:11:54]} 8. cxd4 {[%emt 0:00:41]} Nc6 {[%emt 0:02:36]} 9. Bb5 {[%emt 0:02:25]} Bd7 {[%emt 0:05:10]} 10. Nf3 {[%emt 0:02:21]} Bb4+ {[%emt 0:03:07]} 11. Bd2 {[%emt 0:00:56]} Bxd2+ {[%emt 0:00:25]} 12. Qxd2 {[%emt 0:00:16]} Qa5 {[%emt 0:06:23]} 13. d5 {[%emt 0:19:36]} Qxd2+ {[%emt 0:09:32]} 14. Kxd2 {[%emt 0:01:08]} Nd8 {[%emt 0:13:31]} 15. dxe6 {[%emt 0:22:28]} fxe6 {[%emt 0:00:48]} 16. Bxd7+ {[%emt 0:00:10]} Kxd7 {[%emt 0:00:08]} 17. Ne5+ {[%emt 0:01:03]} Kd6 {[%emt 0:04:54]} 18. f4 {[%emt 0:00:56]} Rc8 {[%emt 0:09:05]} 19. Rhd1 {[%emt 0:08:30]} Rc7 {[%emt 0:04:39]} 20. Ke3+ {[%emt 0:06:24]} Ke7 {[%emt 0:00:52]} 21. Rbc1 {[%emt 0:03:03]} Nc6 {[%emt 0:02:30]} 22. Rc3 {[%emt 0:03:13]} Rhc8 {[%emt 0:03:51]} 23. Rdc1 {[%emt 0:01:57]} Kd6 {[%emt 0:06:05]} 24. Nc4+ {[%emt 0:03:17]} Ke7 {[%emt 0:01:24]} 25. Ne5 {[%emt 0:09:03]} Kd6 {[%emt 0:00:15]} 26. Nd3 {[%emt 0:02:05]} b6 {[%emt 0:03:45]} 27. e5+ {[%emt 0:05:44]} Kd7 {[%emt 0:00:55]} 28. Rd1 {[%emt 0:01:26]} Ke7 {[%emt 0:01:05]} 29. Rdc1 {[%emt 0:01:13]} Kd7 {[%emt 0:00:06]} 30. Rd1 {[%emt 0:00:17]} Na5 {[%emt 0:06:33]} 31. Rxc7+ {[%emt 0:02:50]} Rxc7 {[%emt 0:00:01]} 32. Rc1 {[%emt 0:00:57]} Rxc1 {[%emt 0:02:21]} 33. Nxc1 {[%emt 0:00:02]} Kc6 {[%emt 0:00:44]} 34. Ke4 {[%emt 0:01:09]} Nb7 {[%emt 0:01:06]} 35. g4 {[%emt 0:00:32]} Nc5+ {[%emt 0:00:30]} 36. Kd4 {[%emt 0:00:03]} g6 {[%emt 0:00:43]} 37. Ne2 {[%emt 0:00:42]} a5 {[%emt 0:01:06]} 38. h4 {[%emt 0:00:47]} a4 {[%emt 0:00:40]} 39. Ng3 {[%emt 0:00:29]} b5 {[%emt 0:00:43]} 40. f5 {[%emt 0:00:00]} exf5 {[%emt 0:00:00]} 41. gxf5 {[%emt 0:00:50]} gxf5 {[%emt 0:00:37]} 42. Nxf5 {[%emt 0:00:09]} Ne6+ 43. Ke4 {[%emt 0:11:11]} Kc5 {[%emt 0:13:52]} 44. Ne3 {[%emt 0:04:03]} b4 {[%emt 0:10:46]} 45. Kf5 {[%emt 0:02:53]} b3 {[%emt 0:01:02]} 46. axb3 {[%emt 0:00:04]} axb3 {[%emt 0:01:09]} 47. Nd1 {[%emt 0:00:24]} Nd8 {[%emt 0:05:23]} 48. Kf6 {[%emt 0:04:10]} Kd5 {[%emt 0:01:23]} 49. h5 {[%emt 0:04:14]} h6 {[%emt 0:00:58]} 50. Nc3+ {[%emt 0:03:02]} Kd4 {[%emt 0:00:27]} 51. Na4 {[%emt 0:01:36]} Kd5 {[%emt 0:00:23]} 52. Nc3+ {[%emt 0:04:02]} Kd4 {[%emt 0:00:01]} 53. Na4 {[%emt 0:00:41]} Kd5 {[%emt 0:00:01]} 1/2-1/2

[Event "FIDE WYCC Girls U18 2023"]
[Site "Montesilvano"]
[Date "2023.11.15"]
[Round "3.10"]
[White "Striskova, Lucia"]
[Black "Margadgua Erdenebayar"]
[Result "1/2-1/2"]
[ECO "B90"]
[WhiteElo "2039"]
[BlackElo "2013"]
[Annotator "NA"]
[PlyCount "123"]
[EventDate "2023.11.13"]
[EventType "swiss"]
[EventCountry "ITA"]
[SourceTitle "playchess.com"]
[Source "ChessBase"]
[SourceQuality "1"]
[TimeControl "40/5400+30:1800+30"]

1. e4 {[%emt 0:00:06]} c5 {[%emt 0:00:11]} 2. Nf3 {[%emt 0:00:16]} d6 {[%emt 0:00:15]} 3. d4 {[%emt 0:00:18]} cxd4 {[%emt 0:00:15]} 4. Nxd4 {[%emt 0:00:17]} Nf6 {[%emt 0:00:15]} 5. Nc3 {[%emt 0:00:14]} a6 {[%emt 0:00:31]} 6. Be3 {[%emt 0:00:22]} e5 {[%emt 0:00:38]} 7. Nb3 {[%emt 0:00:30]} Be6 {[%emt 0:00:30]} 8. f4 {[%emt 0:00:44]} Ng4 {[%emt 0:11:26]} 9. Bd2 {[%emt 0:00:37]} exf4 {[%emt 0:01:50]} 10. Bxf4 {[%emt 0:03:15]} Nd7 {[%emt 0:05:04]} 11. Qd2 {[%emt 0:05:00]} Nge5 {[%emt 0:07:40]} 12. h3 {[%emt 0:01:15]} Be7 {[%emt 0:00:29]} 13. O-O-O {[%emt 0:00:32]} O-O {[%emt 0:10:38]} 14. g4 {[%emt 0:02:22]} Rc8 {[%emt 0:04:05]} 15. Kb1 {[%emt 0:00:53]} Bc4 {[%emt 0:07:21]} 16. Nd5 {[%emt 0:02:32]} Bxd5 {[%emt 0:02:57]} 17. exd5 {[%emt 0:00:40]} Qc7 {[%emt 0:02:58]} 18. Qg2 {[%emt 0:04:57]} Ng6 {[%emt 0:04:03]} 19. Bc1 {[%emt 0:01:25]} Bf6 {[%emt 0:02:28]} 20. g5 {[%emt 0:03:03]} Be5 {[%emt 0:00:32]} 21. Bd3 {[%emt 0:03:30]} Nb6 {[%emt 0:04:35]} 22. h4 {[%emt 0:02:37]} Ne7 {[%emt 0:06:45]} 23. Be4 {[%emt 0:05:03]} f5 {[%emt 0:07:02]} 24. gxf6 {[%emt 0:01:06]} Rxf6 {[%emt 0:00:02]} 25. h5 {[%emt 0:05:00]} Rcf8 {[%emt 0:02:08]} 26. Nd4 {[%emt 0:06:01]} Rf2 {[%emt 0:01:47]} 27. Qh3 {[%emt 0:01:34]} Na4 {[%emt 0:05:23]} 28. Qd3 {[%emt 0:03:13]} Nc5 {[%emt 0:03:38]} 29. Qe3 {[%emt 0:01:07]} Nxe4 {[%emt 0:01:15]} 30. Qxe4 {[%emt 0:00:20]} Qc4 {[%emt 0:00:47]} 31. Rhg1 {[%emt 0:12:40]} R2f4 {[%emt 0:03:00]} 32. Bxf4 {[%emt 0:10:43]} Rxf4 {[%emt 0:00:01]} 33. Qg2 {[%emt 0:07:08]} Rxd4 {[%emt 0:00:59]} 34. Qg5 {[%emt 0:00:15]} Rxd1+ {[%emt 0:01:16]} 35. Rxd1 {[%emt 0:00:13]} Qb4 {[%emt 0:01:25]} 36. Qc1 {[%emt 0:01:28]} Nf5 {[%emt 0:00:38]} 37. c3 {[%emt 0:00:43]} Qe4+ {[%emt 0:00:29]} 38. Ka1 {[%emt 0:00:10]} Ne3 {[%emt 0:01:31]} 39. Rg1 {[%emt 0:00:25]} Nxd5 {[%emt 0:00:38]} 40. Qg5 {[%emt 0:00:00]} Bf6 {[%emt 0:00:00]} 41. Qg3 {[%emt 0:00:41]} Qe5 {[%emt 0:14:07]} 42. Qg4 {[%emt 0:00:21]} Nb6 {[%emt 0:01:42]} 43. a3 {[%emt 0:01:02]} Kf7 {[%emt 0:03:01]} 44. Rd1 {[%emt 0:01:12]} d5 {[%emt 0:04:37]} 45. Qb4 {[%emt 0:05:01]} Qc7 {[%emt 0:01:59]} 46. Qg4 {[%emt 0:00:53]} Qc6 {[%emt 0:04:19]} 47. Qf5 {[%emt 0:01:13]} h6 {[%emt 0:00:38]} 48. Qg6+ {[%emt 0:01:12]} Kf8 {[%emt 0:00:33]} 49. Qf5 {[%emt 0:02:33]} Nc4 {[%emt 0:01:14]} 50. Rxd5 {[%emt 0:03:12]} Ne3 {[%emt 0:04:05]} 51. Rd8+ {[%emt 0:00:09]} Ke7 {[%emt 0:00:06]} 52. Qd3 {[%emt 0:00:15]} Nc4 {[%emt 0:00:51]} 53. Rd5 {[%emt 0:08:17]} Nd6 {[%emt 0:00:04]} 54. Qe3+ {[%emt 0:00:58]} Kd7 {[%emt 0:00:39]} 55. Rc5 {[%emt 0:03:47]} Qb6 {[%emt 0:00:02]} 56. Qh3+ {[%emt 0:00:32]} Ke7 {[%emt 0:00:12]} 57. Rd5 {[%emt 0:01:40]} Qg1+ {[%emt 0:00:52]} 58. Ka2 {[%emt 0:00:08]} Qe1 {[%emt 0:00:07]} 59. Qd3 {[%emt 0:01:22]} Qe6 {[%emt 0:00:03]} 60. Ka1 {[%emt 0:00:54]} b5 {[%emt 0:01:16]} 61. Rc5 {[%emt 0:01:41]} Qe1+ {[%emt 0:00:49]} 62. Ka2 {[%emt 0:00:08]} 1/2-1/2

[Event "FIDE WYCC Girls U18 2023"]
[Site "Montesilvano"]
[Date "2023.11.15"]
[Round "3.11"]
[White "Kurmangaliyeva, Liya"]
[Black "Hoanca, Alexia-Ioana"]
[Result "1/2-1/2"]
[ECO "B10"]
[WhiteElo "2236"]
[BlackElo "1830"]
[Annotator "ChessBase"]
[PlyCount "77"]
[EventDate "2023.11.13"]
[EventType "swiss"]
[EventCountry "ITA"]
[SourceTitle "playchess.com"]
[Source "ChessBase"]
[SourceQuality "1"]
[TimeControl "40/5400+30:1800+30"]

1. e4 {[%emt 0:00:18]} c6 {[%emt 0:00:13]} 2. Nc3 {[%emt 0:00:23]} d5 {[%emt 0:00:06]} 3. Nf3 {[%emt 0:00:09]} Nf6 {[%emt 0:00:37]} 4. e5 {[%emt 0:00:15]} Ne4 {[%emt 0:00:58]} 5. Ne2 {[%emt 0:00:11]} Qb6 {[%emt 0:00:18]} 6. d4 {[%emt 0:00:06]} e6 {[%emt 0:00:25]} 7. Ng3 {[%emt 0:00:17]} c5 {[%emt 0:00:37]} 8. Bd3 {[%emt 0:00:16]} Nxg3 {[%emt 0:00:40]} 9. fxg3 {[%emt 0:00:06]} Nc6 {[%emt 0:00:28]} 10. O-O {[%emt 0:00:34]} cxd4 {[%emt 0:00:11]} 11. a3 {[%emt 0:00:03]} Bd7 {[%emt 0:02:01]} 12. b4 {[%emt 0:00:39]} Be7 {[%emt 0:01:04]} 13. Qe1 {[%emt 0:09:19]} f6 {[%emt 0:17:02]} 14. Bd2 {[%emt 0:18:35]} Qc7 {[%emt 0:15:33]} 15. Bf4 {[%emt 0:07:42]} Qb6 {[%emt 0:10:26]} 16. Rb1 {[%emt 0:05:49]} a6 {[%emt 0:13:09]} 17. g4 {[%emt 0:03:35]} O-O-O {[%emt 0:04:15]} 18. b5 {[%emt 0:13:36]} axb5 {[%emt 0:01:52]} 19. Rxb5 {[%emt 0:01:13]} Qa7 {[%emt 0:05:40]} 20. Rb1 {[%emt 0:06:34]} Rde8 {[%emt 0:05:25]} 21. Kh1 {[%emt 0:03:37]} Bd8 {[%emt 0:01:41]} 22. Qe2 {[%emt 0:04:41]} Bc7 {[%emt 0:03:48]} 23. Rb3 {[%emt 0:08:15]} g5 {[%emt 0:04:18]} 24. Bg3 {[%emt 0:01:08]} h5 {[%emt 0:01:34]} 25. gxh5 {[%emt 0:04:18]} g4 {[%emt 0:00:08]} 26. Nh4 {[%emt 0:00:10]} Bxe5 {[%emt 0:01:43]} 27. Bg6 {[%emt 0:02:33]} Bxg3 {[%emt 0:01:31]} 28. Rxg3 {[%emt 0:00:30]} Ref8 {[%emt 0:00:34]} 29. Qxg4 {[%emt 0:02:09]} Ne5 {[%emt 0:02:35]} 30. Qe2 {[%emt 0:02:22]} Qc5 {[%emt 0:02:24]} 31. Bd3 {[%emt 0:00:09]} Be8 {[%emt 0:00:16]} 32. Ng6 {[%emt 0:00:58]} Bxg6 {[%emt 0:00:16]} 33. hxg6 {[%emt 0:00:16]} Rhg8 {[%emt 0:01:24]} 34. h4 {[%emt 0:03:05]} Qd6 {[%emt 0:00:38]} 35. h5 {[%emt 0:00:47]} Nf7 {[%emt 0:02:18]} 36. Rgf3 {[%emt 0:00:58]} Nh6 {[%emt 0:00:50]} 37. Rxf6 {[%emt 0:00:34]} Nf5 {[%emt 0:00:54]} 38. R1xf5 {[%emt 0:00:30]} Qe7 {[%emt 0:00:38]} 39. Rxf8+ {[%emt 0:00:08]} 1/2-1/2

[Event "FIDE WYCC Girls U18 2023"]
[Site "Montesilvano"]
[Date "2023.11.15"]
[Round "3.12"]
[White "Hernandez Ortega, Carolina"]
[Black "Naymanova, Patricie"]
[Result "0-1"]
[ECO "B44"]
[WhiteElo "1796"]
[BlackElo "2083"]
[Annotator "NA"]
[PlyCount "124"]
[EventDate "2023.11.13"]
[EventType "swiss"]
[EventCountry "ITA"]
[SourceTitle "playchess.com"]
[Source "ChessBase"]
[SourceQuality "1"]
[TimeControl "40/5400+30:1800+30"]

1. e4 {[%emt 0:00:04]} c5 {[%emt 0:00:07]} 2. Nf3 {[%emt 0:00:10]} e6 {[%emt 0:00:07]} 3. d4 {[%emt 0:00:10]} cxd4 {[%emt 0:00:03]} 4. Nxd4 {[%emt 0:00:11]} Nc6 {[%emt 0:00:05]} 5. Bf4 {[%emt 0:01:06]} d6 {[%emt 0:00:11]} 6. Nxc6 {[%emt 0:00:10]} bxc6 {[%emt 0:00:05]} 7. c4 {[%emt 0:00:09]} Rb8 {[%emt 0:00:54]} 8. Qc2 {[%emt 0:01:30]} Qb6 {[%emt 0:01:50]} 9. b3 {[%emt 0:02:29]} Qd4 {[%emt 0:09:16]} 10. Nc3 {[%emt 0:00:19]} Qf6 {[%emt 0:01:53]} 11. Bg3 {[%emt 0:07:20]} h5 {[%emt 0:07:27]} 12. O-O-O {[%emt 0:06:08]} e5 {[%emt 0:07:49]} 13. f3 {[%emt 0:01:09]} Qg5+ {[%emt 0:30:03]} 14. Qd2 {[%emt 0:03:26]} Qxd2+ {[%emt 0:02:17]} 15. Rxd2 {[%emt 0:00:36]} g6 {[%emt 0:06:04]} 16. Kb2 {[%emt 0:03:44]} Be6 {[%emt 0:03:39]} 17. c5 {[%emt 0:06:04]} h4 {[%emt 0:01:50]} 18. Bf2 {[%emt 0:00:10]} dxc5 {[%emt 0:01:12]} 19. Kc2 {[%emt 0:04:21]} Nf6 {[%emt 0:01:38]} 20. Bc4 {[%emt 0:05:17]} Bxc4 {[%emt 0:01:12]} 21. bxc4 {[%emt 0:00:05]} Be7 {[%emt 0:03:20]} 22. Rb1 {[%emt 0:04:07]} Rxb1 {[%emt 0:03:36]} 23. Kxb1 {[%emt 0:00:07]} O-O {[%emt 0:02:11]} 24. Bxh4 {[%emt 0:11:51]} Nxe4 {[%emt 0:00:09]} 25. Nxe4 {[%emt 0:00:07]} Bxh4 {[%emt 0:00:02]} 26. Nxc5 {[%emt 0:00:41]} Rb8+ {[%emt 0:01:00]} 27. Kc2 {[%emt 0:03:11]} Kg7 {[%emt 0:05:12]} 28. Nd7 {[%emt 0:05:16]} Re8 {[%emt 0:00:42]} 29. Re2 {[%emt 0:01:41]} Re7 {[%emt 0:02:25]} 30. Nxe5 {[%emt 0:01:23]} f6 {[%emt 0:00:04]} 31. g3 {[%emt 0:00:15]} Bg5 {[%emt 0:01:48]} 32. h4 {[%emt 0:02:36]} Bh6 {[%emt 0:00:03]} 33. g4 {[%emt 0:00:52]} Bf4 {[%emt 0:00:10]} 34. Kd3 {[%emt 0:03:40]} fxe5 {[%emt 0:00:18]} 35. Rb2 {[%emt 0:02:13]} Rd7+ {[%emt 0:00:04]} 36. Ke2 {[%emt 0:00:08]} Kf6 {[%emt 0:00:51]} 37. Rb8 {[%emt 0:00:53]} Rd2+ {[%emt 0:00:37]} 38. Kf1 {[%emt 0:00:12]} Rxa2 {[%emt 0:00:14]} 39. g5+ {[%emt 0:00:54]} Ke7 {[%emt 0:02:45]} 40. Rb7+ {[%emt 0:00:00]} Ke8 {[%emt 0:00:00]} 41. Rg7 {[%emt 0:02:48]} a5 {[%emt 0:04:32]} 42. Rxg6 {[%emt 0:00:07]} a4 {[%emt 0:00:36]} 43. Rxc6 {[%emt 0:00:27]} a3 {[%emt 0:00:03]} 44. Ra6 {[%emt 0:00:37]} Ra1+ {[%emt 0:02:19]} 45. Ke2 {[%emt 0:00:56]} a2 {[%emt 0:00:41]} 46. g6 {[%emt 0:00:32]} Rg1 {[%emt 0:00:52]} 47. Ra8+ {[%emt 0:00:15]} Ke7 {[%emt 0:00:17]} 48. Ra7+ {[%emt 0:00:06]} Kf6 {[%emt 0:00:46]} 49. g7 {[%emt 0:00:07]} Rxg7 {[%emt 0:00:23]} 50. Ra6+ {[%emt 0:00:20]} Kf5 {[%emt 0:00:36]} 51. Kd3 {[%emt 0:00:13]} Rg2 {[%emt 0:01:16]} 52. c5 {[%emt 0:03:15]} Rf2 {[%emt 0:06:13]} 53. Kc4 {[%emt 0:00:08]} Rxf3 {[%emt 0:02:54]} 54. Rxa2 {[%emt 0:00:09]} e4 {[%emt 0:00:09]} 55. c6 {[%emt 0:00:23]} Rf1 {[%emt 0:01:50]} 56. Rc2 {[%emt 0:01:11]} Rd1 {[%emt 0:00:55]} 57. h5 {[%emt 0:01:13]} Rd8 {[%emt 0:05:46]} 58. Kb3 {[%emt 0:01:49]} e3 {[%emt 0:01:10]} 59. c7 {[%emt 0:03:22]} Rc8 {[%emt 0:00:01]} 60. Rc5+ {[%emt 0:00:08]} Ke4 {[%emt 0:00:45]} 61. Kc2 {[%emt 0:01:12]} Rxc7 {[%emt 0:00:35]} 62. Rxc7 {[%emt 0:00:10]} Bxc7 {[%emt 0:00:03]} 0-1

[Event "FIDE WYCC Girls U18 2023"]
[Site "Montesilvano"]
[Date "2023.11.15"]
[Round "3.13"]
[White "Hakobyan, Astghik"]
[Black "Sovetbekova, Nurai"]
[Result "0-1"]
[ECO "B52"]
[WhiteElo "2073"]
[BlackElo "1801"]
[Annotator "NA"]
[PlyCount "74"]
[EventDate "2023.11.13"]
[EventType "swiss"]
[EventCountry "ITA"]
[SourceTitle "playchess.com"]
[Source "ChessBase"]
[SourceQuality "1"]
[TimeControl "40/5400+30:1800+30"]

1. e4 {[%emt 0:00:03]} c5 {[%emt 0:00:04]} 2. Nf3 {[%emt 0:00:03]} d6 {[%emt 0:00:05]} 3. Bb5+ {[%emt 0:00:11]} Bd7 {[%emt 0:00:05]} 4. Bxd7+ {[%emt 0:00:40]} Qxd7 {[%emt 0:00:05]} 5. c4 {[%emt 0:01:26]} Nf6 {[%emt 0:00:10]} 6. Nc3 {[%emt 0:00:31]} g6 {[%emt 0:00:15]} 7. O-O {[%emt 0:00:52]} Bg7 {[%emt 0:00:04]} 8. d4 {[%emt 0:00:28]} cxd4 {[%emt 0:00:13]} 9. Nxd4 {[%emt 0:00:05]} O-O {[%emt 0:00:16]} 10. f3 {[%emt 0:00:11]} Nc6 {[%emt 0:00:06]} 11. Be3 {[%emt 0:00:43]} a6 {[%emt 0:00:06]} 12. Qd2 {[%emt 0:00:47]} b5 {[%emt 0:13:53]} 13. cxb5 {[%emt 0:07:47]} Nxd4 {[%emt 0:01:19]} 14. Bxd4 {[%emt 0:00:21]} axb5 {[%emt 0:00:05]} 15. Kh1 {[%emt 0:02:02]} Qb7 {[%emt 0:07:02]} 16. b3 {[%emt 0:20:55]} Rfc8 {[%emt 0:25:14]} 17. Rac1 {[%emt 0:09:52]} b4 {[%emt 0:12:55]} 18. Na4 {[%emt 0:08:50]} Nd7 {[%emt 0:00:30]} 19. Be3 {[%emt 0:04:54]} h5 {[%emt 0:11:10]} 20. Bg5 {[%emt 0:07:26]} Nc5 {[%emt 0:05:39]} 21. Nxc5 {[%emt 0:00:56]} dxc5 {[%emt 0:00:48]} 22. Qe2 {[%emt 0:01:18]} Ra5 {[%emt 0:04:31]} 23. f4 {[%emt 0:03:53]} e6 {[%emt 0:06:39]} 24. f5 {[%emt 0:03:54]} exf5 {[%emt 0:00:54]} 25. exf5 {[%emt 0:00:06]} Qa6 {[%emt 0:00:17]} 26. Qe7 {[%emt 0:08:43]} Rxa2 {[%emt 0:03:28]} 27. fxg6 {[%emt 0:00:03]} Qxg6 {[%emt 0:00:38]} 28. Rcd1 {[%emt 0:03:17]} Bd4 {[%emt 0:02:27]} 29. Rf3 {[%emt 0:05:00]} Qe6 {[%emt 0:02:56]} 30. Qb7 {[%emt 0:00:20]} Re8 {[%emt 0:00:22]} 31. Rdf1 {[%emt 0:01:56]} Rf2 {[%emt 0:00:48]} 32. R1xf2 {[%emt 0:05:24]} Bxf2 {[%emt 0:00:02]} 33. g3 {[%emt 0:00:59]} Bd4 {[%emt 0:00:39]} 34. Bd2 {[%emt 0:01:43]} Qg6 {[%emt 0:01:05]} 35. Qb5 {[%emt 0:01:41]} Qe4 {[%emt 0:00:50]} 36. Kg2 {[%emt 0:00:20]} Qe2+ {[%emt 0:00:14]} 37. Kh3 {[%emt 0:00:00]} Qxb5 {[%emt 0:00:08]} 0-1

[Event "FIDE WYCC Girls U18 2023"]
[Site "Montesilvano"]
[Date "2023.11.15"]
[Round "3.14"]
[White "Tikvesli, Ceylin"]
[Black "Voriskova, Anna"]
[Result "0-1"]
[ECO "B30"]
[WhiteElo "1736"]
[BlackElo "2065"]
[Annotator "NA"]
[PlyCount "154"]
[EventDate "2023.11.13"]
[EventType "swiss"]
[EventCountry "ITA"]
[SourceTitle "playchess.com"]
[Source "ChessBase"]
[SourceQuality "1"]
[TimeControl "40/5400+30:1800+30"]

1. e4 {[%emt 0:00:05]} c5 {[%emt 0:00:06]} 2. Nf3 {[%emt 0:00:06]} Nc6 {[%emt 0:00:07]} 3. Bb5 {[%emt 0:00:04]} e6 {[%emt 0:00:06]} 4. O-O {[%emt 0:00:19]} Nge7 {[%emt 0:00:18]} 5. Re1 {[%emt 0:00:57]} a6 {[%emt 0:00:05]} 6. Bf1 {[%emt 0:02:14]} d6 {[%emt 0:05:14]} 7. c3 {[%emt 0:06:07]} g6 {[%emt 0:03:04]} 8. d4 {[%emt 0:04:46]} cxd4 {[%emt 0:00:16]} 9. cxd4 {[%emt 0:01:10]} Bg7 {[%emt 0:01:01]} 10. Nc3 {[%emt 0:04:21]} O-O {[%emt 0:00:33]} 11. Be3 {[%emt 0:00:33]} d5 {[%emt 0:03:27]} 12. e5 {[%emt 0:04:03]} Nf5 {[%emt 0:00:55]} 13. Bd3 {[%emt 0:04:40]} Nxe3 {[%emt 0:01:21]} 14. fxe3 {[%emt 0:00:15]} b5 {[%emt 0:10:16]} 15. Rc1 {[%emt 0:05:58]} Bb7 {[%emt 0:00:50]} 16. Ne2 {[%emt 0:04:06]} Rc8 {[%emt 0:03:30]} 17. Nf4 {[%emt 0:02:30]} Qb6 {[%emt 0:02:46]} 18. Bb1 {[%emt 0:03:24]} Rc7 {[%emt 0:04:51]} 19. Qd2 {[%emt 0:03:30]} Rfc8 {[%emt 0:01:42]} 20. Nd3 {[%emt 0:01:47]} Bf8 {[%emt 0:02:04]} 21. Nc5 {[%emt 0:06:06]} Na5 {[%emt 0:03:43]} 22. b4 {[%emt 0:04:20]} Nc4 {[%emt 0:00:12]} 23. Qc3 {[%emt 0:00:51]} a5 {[%emt 0:05:26]} 24. a3 {[%emt 0:01:24]} axb4 {[%emt 0:00:25]} 25. axb4 {[%emt 0:00:15]} Ra8 {[%emt 0:00:49]} 26. Nd2 {[%emt 0:03:52]} Ra3 {[%emt 0:03:20]} 27. Ndb3 {[%emt 0:00:10]} Bh6 {[%emt 0:01:09]} 28. Re2 {[%emt 0:01:54]} Bc8 {[%emt 0:00:59]} 29. Rf1 {[%emt 0:03:24]} Rca7 {[%emt 0:02:16]} 30. e4 {[%emt 0:04:17]} Qd8 {[%emt 0:03:48]} 31. Qh3 {[%emt 0:03:23]} Bg5 {[%emt 0:01:51]} 32. exd5 {[%emt 0:01:24]} Qxd5 {[%emt 0:01:19]} 33. Be4 {[%emt 0:00:21]} Qd8 {[%emt 0:00:18]} 34. Bc6 {[%emt 0:06:03]} Nd2 {[%emt 0:05:08]} 35. Rfe1 {[%emt 0:01:16]} Nxb3 {[%emt 0:01:27]} 36. Nxb3 {[%emt 0:00:05]} Qb6 {[%emt 0:02:02]} 37. Qf3 {[%emt 0:09:31]} Bb7 {[%emt 0:02:13]} 38. Rc2 {[%emt 0:03:09]} Bxc6 {[%emt 0:02:16]} 39. Rxc6 {[%emt 0:00:05]} Qb7 {[%emt 0:07:23]} 40. Rc3 {[%emt 0:00:00]} Qxf3 {[%emt 0:00:00]} 41. Rxf3 {[%emt 0:06:57]} Rc7 {[%emt 0:11:00]} 42. Na5 {[%emt 0:15:52]} Rxf3 {[%emt 0:00:53]} 43. gxf3 {[%emt 0:00:01]} Bd2 {[%emt 0:01:05]} 44. Rb1 {[%emt 0:01:21]} Be3+ {[%emt 0:00:22]} 45. Kg2 {[%emt 0:00:35]} Bxd4 {[%emt 0:00:09]} 46. f4 {[%emt 0:00:06]} Kg7 {[%emt 0:05:26]} 47. Rb3 {[%emt 0:01:52]} Bb6 {[%emt 0:04:48]} 48. Kf3 {[%emt 0:00:48]} Rc2 {[%emt 0:01:16]} 49. Kg3 {[%emt 0:01:03]} Rc7 {[%emt 0:04:10]} 50. Kf3 {[%emt 0:00:33]} h6 {[%emt 0:01:07]} 51. h4 {[%emt 0:01:21]} h5 {[%emt 0:01:42]} 52. Rd3 {[%emt 0:00:21]} Rc2 {[%emt 0:04:28]} 53. Rd6 {[%emt 0:05:03]} Bf2 {[%emt 0:01:23]} 54. Nc6 {[%emt 0:02:22]} Bxh4 {[%emt 0:00:22]} 55. Nd4 {[%emt 0:00:35]} Rc3+ {[%emt 0:02:50]} 56. Kg2 {[%emt 0:01:43]} Rc4 {[%emt 0:00:37]} 57. Rd7 {[%emt 0:00:22]} Rxb4 {[%emt 0:01:08]} 58. Nxe6+ {[%emt 0:00:11]} Kg8 {[%emt 0:00:08]} 59. Nd4 {[%emt 0:00:29]} Rb2+ {[%emt 0:01:47]} 60. Kh3 {[%emt 0:00:49]} Bf2 {[%emt 0:00:35]} 61. Nf3 {[%emt 0:00:42]} Rb4 {[%emt 0:02:26]} 62. f5 {[%emt 0:02:20]} gxf5 {[%emt 0:00:18]} 63. Kg2 {[%emt 0:00:27]} Be3 {[%emt 0:00:49]} 64. Rd3 {[%emt 0:00:14]} f4 {[%emt 0:00:56]} 65. Ng5 {[%emt 0:00:33]} Rb1 {[%emt 0:00:57]} 66. Kf3 {[%emt 0:01:37]} b4 {[%emt 0:03:44]} 67. Rd7 {[%emt 0:00:42]} b3 {[%emt 0:01:09]} 68. Ke4 {[%emt 0:00:35]} Rg1 {[%emt 0:03:10]} 69. Kf5 {[%emt 0:00:24]} b2 {[%emt 0:01:51]} 70. Kf6 {[%emt 0:01:05]} Rxg5 {[%emt 0:00:16]} 71. Rd8+ {[%emt 0:00:55]} Kh7 {[%emt 0:00:06]} 72. Rb8 {[%emt 0:00:56]} Rg2 {[%emt 0:00:52]} 73. Kxf7 {[%emt 0:00:18]} f3 {[%emt 0:00:39]} 74. e6 {[%emt 0:00:38]} f2 {[%emt 0:00:16]} 75. e7 {[%emt 0:00:15]} f1=Q+ {[%emt 0:00:07]} 76. Ke6 {[%emt 0:00:04]} Qc4+ {[%emt 0:00:12]} 77. Kd7 {[%emt 0:00:16]} Qd5+ {[%emt 0:00:06]} 0-1

[Event "FIDE WYCC Girls U18 2023"]
[Site "Montesilvano"]
[Date "2023.11.15"]
[Round "3.15"]
[White "Liu, Kelsey"]
[Black "Egger, Stefanie"]
[Result "1-0"]
[ECO "B47"]
[WhiteElo "2051"]
[BlackElo "1784"]
[Annotator "NA"]
[PlyCount "79"]
[EventDate "2023.11.13"]
[EventType "swiss"]
[EventCountry "ITA"]
[SourceTitle "playchess.com"]
[Source "ChessBase"]
[SourceQuality "1"]
[TimeControl "40/5400+30:1800+30"]

1. e4 {[%emt 0:00:04]} c5 {[%emt 0:00:07]} 2. Nf3 {[%emt 0:00:09]} e6 {[%emt 0:00:05]} 3. d4 {[%emt 0:00:05]} cxd4 {[%emt 0:00:04]} 4. Nxd4 {[%emt 0:00:04]} Nc6 {[%emt 0:00:06]} 5. Nc3 {[%emt 0:00:08]} Qc7 {[%emt 0:00:09]} 6. Ncb5 {[%emt 0:00:12]} Qb8 {[%emt 0:01:10]} 7. Bd3 {[%emt 0:00:10]} a6 {[%emt 0:01:46]} 8. Nxc6 {[%emt 0:00:12]} dxc6 {[%emt 0:07:51]} 9. Nc3 {[%emt 0:00:13]} e5 {[%emt 0:12:00]} 10. Be3 {[%emt 0:02:18]} b5 {[%emt 0:02:50]} 11. a4 {[%emt 0:01:34]} Nf6 {[%emt 0:01:35]} 12. O-O {[%emt 0:07:08]} Ng4 {[%emt 0:07:56]} 13. Bg5 {[%emt 0:01:08]} Be7 {[%emt 0:10:55]} 14. Bxe7 {[%emt 0:01:24]} Kxe7 {[%emt 0:00:05]} 15. axb5 {[%emt 0:01:09]} axb5 {[%emt 0:09:25]} 16. Rxa8 {[%emt 0:00:31]} Qxa8 {[%emt 0:00:03]} 17. Bxb5 {[%emt 0:00:47]} Rd8 {[%emt 0:00:11]} 18. Bd3 {[%emt 0:01:11]} Be6 {[%emt 0:02:04]} 19. b3 {[%emt 0:08:04]} Qa7 {[%emt 0:03:58]} 20. Na4 {[%emt 0:02:36]} Nf6 {[%emt 0:01:45]} 21. Qc1 {[%emt 0:03:24]} Qd4 {[%emt 0:00:57]} 22. Qa3+ {[%emt 0:00:55]} Ke8 {[%emt 0:01:42]} 23. Nc5 {[%emt 0:02:43]} Bc8 {[%emt 0:08:41]} 24. Qa5 {[%emt 0:06:57]} Nd7 {[%emt 0:04:20]} 25. Na4 {[%emt 0:01:43]} Nf6 {[%emt 0:01:05]} 26. Qc7 {[%emt 0:16:11]} Qd6 {[%emt 0:11:24]} 27. Qb6 {[%emt 0:03:12]} Nd7 {[%emt 0:01:41]} 28. Qa5 {[%emt 0:01:36]} Qd4 {[%emt 0:00:32]} 29. h3 {[%emt 0:00:42]} Nf6 {[%emt 0:00:45]} 30. Re1 {[%emt 0:02:51]} Be6 {[%emt 0:00:32]} 31. Nc5 {[%emt 0:00:40]} Bc8 {[%emt 0:00:07]} 32. Bc4 {[%emt 0:01:36]} Qd6 {[%emt 0:06:35]} 33. Nd3 {[%emt 0:04:02]} Be6 {[%emt 0:03:06]} 34. Nxe5 {[%emt 0:00:37]} Bxc4 {[%emt 0:01:00]} 35. Nxc4 {[%emt 0:00:19]} Qd4 {[%emt 0:00:21]} 36. e5 {[%emt 0:00:42]} Ne4 {[%emt 0:00:15]} 37. Rxe4 {[%emt 0:00:15]} Qxe4 {[%emt 0:00:14]} 38. Nd6+ {[%emt 0:00:03]} Rxd6 {[%emt 0:00:11]} 39. exd6 {[%emt 0:00:05]} Qd4 {[%emt 0:01:26]} 40. Qe1+ {[%emt 0:00:00]} 1-0